fUSD/lending_fUSD_20260628
["ID","MTS","AMOUNT","RATE_DAILY","PERIOD"]
[426553321,1782588640000,-350.0,0.00026559,8]
[426553364,1782588640000,-151.0,0.000268,2]
[426553363,1782588640000,-151.0,0.000268,2]
[426553358,1782588640000,-151.0,0.000268,2]
[426553361,1782588640000,-151.0,0.000268,2]
[426553360,1782588640000,-151.0,0.000268,2]
[426553356,1782588640000,-151.0,0.000268,2]
[426553371,1782588640000,-193.804371,0.000268,2]
[426553366,1782588640000,-196.645628,0.000268,2]
[426553377,1782588640000,-166.0,0.000268,3]
[426553376,1782588640000,-151.0,0.000268,2]
[426553373,1782588640000,-193.804371,0.000268,2]
[426553369,1782588640000,-196.645628,0.000268,2]
[426553365,1782588640000,-667.3,0.000268,7]
[426553372,1782588640000,-193.804371,0.000268,2]
[426553368,1782588640000,-196.645628,0.000268,2]
[426553378,1782588640000,-151.0,0.000268,2]
[426553370,1782588640000,-193.804371,0.000268,2]
[426553367,1782588640000,-196.645628,0.000268,2]
[426553375,1782588640000,-151.0,0.000268,2]
[426553383,1782588640000,-268.480136,0.000268,2]
[426553380,1782588640000,-151.0,0.000268,2]
[426553384,1782588640000,-268.480136,0.000268,2]
[426553386,1782588640000,-308.291498,0.000268,2]
[426553381,1782588640000,-268.480136,0.000268,2]
[426553382,1782588640000,-268.480136,0.000268,2]
[426553385,1782588640000,-308.291498,0.000268,2]
[426553319,1782588640000,-2237.96939069,0.00026543,14]
[426553362,1782588640000,-151.0,0.000268,2]
[426553353,1782588640000,-200.0,0.000268,2]
[426553374,1782588640000,-151.0,0.000268,2]
[426553357,1782588640000,-151.0,0.000268,2]
[426553355,1782588640000,-151.0,0.000268,2]
[426553330,1782588640000,-151.0,0.00026797,7]
[426553340,1782588640000,-500.0,0.00026799,2]
[426553329,1782588640000,-365.184005,0.00026738,2]
[426553331,1782588640000,-500.0,0.00026798,2]
[426553332,1782588640000,-500.0,0.00026799,2]
[426553339,1782588640000,-500.0,0.00026799,2]
[426553333,1782588640000,-500.0,0.00026799,2]
[426553327,1782588640000,-2427.59388097,0.000267,2]
[426553334,1782588640000,-500.0,0.00026799,2]
[426553335,1782588640000,-500.0,0.00026799,2]
[426553336,1782588640000,-500.0,0.00026799,2]
[426553338,1782588640000,-500.0,0.00026799,2]
[426553351,1782588640000,-151.0,0.000268,2]
[426553337,1782588640000,-500.0,0.00026799,2]
[426553359,1782588640000,-151.0,0.000268,2]
[426553350,1782588640000,-151.0,0.000268,2]
[426553354,1782588640000,-151.0,0.000268,2]
[426553342,1782588640000,-500.0,0.00026799,2]
[426553344,1782588640000,-666.0,0.00026799,2]
[426553352,1782588640000,-151.0,0.000268,2]
[426553346,1782588640000,-1744773.1268994,0.000268,2]
[426553349,1782588640000,-151.0,0.000268,2]
[426553343,1782588640000,-500.0,0.00026799,2]
[426553345,1782588640000,-327.0,0.000268,5]
[426553341,1782588640000,-500.0,0.00026799,2]
[426553347,1782588640000,-200.0,0.000268,2]
[426553348,1782588640000,-224.55,0.000268,7]
[426553422,1782588641000,-500.0,0.00027123,2]
[426553441,1782588641000,-193.804371,0.00027397,2]
[426553440,1782588641000,-193.804371,0.00027397,2]
[426553424,1782588641000,-500.0,0.00027123,2]
[426553428,1782588641000,-500.0,0.00027123,2]
[426553423,1782588641000,-500.0,0.00027123,2]
[426553427,1782588641000,-500.0,0.00027123,2]
[426553420,1782588641000,-500.0,0.00027123,2]
[426553419,1782588641000,-2479.09913021,0.00027111,2]
[426553418,1782588641000,-912.64085985,0.00027077,2]
[426553417,1782588641000,-200.0,0.00027068,2]
[426553426,1782588641000,-500.0,0.00027123,2]
[426553430,1782588641000,-500.0,0.00027123,2]
[426553448,1782588641000,-151.0,0.00027397,2]
[426553432,1782588641000,-150.0,0.00027123,2]
[426553429,1782588641000,-500.0,0.00027123,2]
[426553433,1782588641000,-152.41,0.00027188,30]
[426553438,1782588641000,-912.64085985,0.00027351,2]
[426553439,1782588641000,-193.804371,0.00027397,2]
[426553436,1782588641000,-200.0,0.00027339,2]
[426553435,1782588641000,-2479.09913021,0.00027333,2]
[426553434,1782588641000,-10165.99044332,0.00027287,2]
[426553437,1782588641000,-200.0,0.00027339,2]
[426553442,1782588641000,-193.804371,0.00027397,2]
[426553444,1782588641000,-226.77911959,0.00027397,2]
[426553445,1782588641000,-151.0,0.00027397,2]
[426553421,1782588641000,-500.0,0.00027123,2]
[426553431,1782588641000,-515.69820053,0.00027123,2]
[426553425,1782588641000,-500.0,0.00027123,2]
[426553388,1782588641000,-308.291498,0.000268,2]
[426553413,1782588641000,-3563.248,0.00027034,2]
[426553446,1782588641000,-151.0,0.00027397,2]
[426553390,1782588641000,-999.514175,0.000268,2]
[426553389,1782588641000,-999.514175,0.000268,2]
[426553387,1782588641000,-308.291498,0.000268,2]
[426553391,1782588641000,-999.514175,0.000268,2]
[426553393,1782588641000,-403.762528,0.000268,2]
[426553394,1782588641000,-151.0,0.000268,2]
[426553392,1782588641000,-999.514175,0.000268,2]
[426553402,1782588641000,-1666.66666,0.0002683,2]
[426553400,1782588641000,-3500.0,0.000268,9]
[426553399,1782588641000,-151.0,0.000268,2]
[426553396,1782588641000,-151.0,0.000268,2]
[426553397,1782588641000,-403.762528,0.000268,2]
[426553401,1782588641000,-912.64085985,0.00026803,2]
[426553395,1782588641000,-403.762528,0.000268,2]
[426553415,1782588641000,-3028.0437,0.00027043,14]
[426553411,1782588641000,-1361.0,0.00027034,2]
[426553405,1782588641000,-2479.09913021,0.00026889,2]
[426553404,1782588641000,-350.0,0.00026877,2]
[426553412,1782588641000,-1234.989,0.00027034,2]
[426553408,1782588641000,-1666.66667,0.0002703,2]
[426553414,1782588641000,-3649.0,0.00027034,2]
[426553406,1782588641000,-4700.0,0.000269,9]
[426553407,1782588641000,-1666.66667,0.0002693,2]
[426553409,1782588641000,-385.0,0.00027034,2]
[426553410,1782588641000,-1277.0,0.00027034,2]
[426553403,1782588641000,-375.36878872,0.00026856,2]
[426553416,1782588641000,-200.0,0.00027068,2]
[426553450,1782588641000,-268.480136,0.00027397,2]
[426553398,1782588641000,-403.762528,0.000268,2]
[426553452,1782588641000,-268.480136,0.00027397,2]
[426553483,1782588641000,-151.0,0.00027397,2]
[426553479,1782588641000,-181.585769,0.00027397,2]
[426553484,1782588641000,-151.0,0.00027397,2]
[426553488,1782588641000,-181.585769,0.000274,7]
[426553485,1782588641000,-231.21154068,0.00027397,2]
[426553487,1782588641000,-181.585769,0.000274,7]
[426553486,1782588641000,-462.42308137,0.00027397,2]
[426553489,1782588641000,-181.585769,0.000274,7]
[426553491,1782588641000,-150.79,0.000275,7]
[426553502,1782588641000,-151.0,0.00027687,3]
[426553501,1782588641000,-912.64085985,0.00027625,2]
[426553490,1782588641000,-181.585769,0.000274,7]
[426553492,1782588641000,-500.0,0.000275,7]
[426553482,1782588641000,-151.0,0.00027397,2]
[426553495,1782588641000,-196.645628,0.000276,7]
[426553494,1782588641000,-2479.09913021,0.00027556,2]
[426553496,1782588641000,-196.645628,0.000276,7]
[426553500,1782588641000,-200.0,0.00027612,2]
[426553498,1782588641000,-196.645628,0.000276,7]
[426553493,1782588641000,-2000.0,0.000275,2]
[426553499,1782588641000,-200.0,0.00027612,2]
[426553504,1782588641000,-300.368052,0.00027778,7]
[426553503,1782588641000,-2479.09913021,0.00027778,2]
[426553508,1782588641000,-151.0,0.00027849,3]
[426553505,1782588641000,-300.368052,0.00027778,7]
[426553506,1782588641000,-300.368052,0.00027778,7]
[426553507,1782588641000,-300.368052,0.00027778,7]
[426553451,1782588641000,-268.480136,0.00027397,2]
[426553497,1782588641000,-196.645628,0.000276,7]
[426553481,1782588641000,-2875.44,0.00027397,10]
[426553509,1782588641000,-151.0,0.00027849,3]
[426553472,1782588641000,-181.585769,0.00027397,2]
[426553480,1782588641000,-3450.53,0.00027397,10]
[426553443,1782588641000,-151.0,0.00027397,2]
[426553453,1782588641000,-268.480136,0.00027397,2]
[426553454,1782588641000,-308.291498,0.00027397,2]
[426553447,1782588641000,-151.0,0.00027397,2]
[426553456,1782588641000,-308.291498,0.00027397,2]
[426553466,1782588641000,-403.762528,0.00027397,2]
[426553458,1782588641000,-999.514175,0.00027397,2]
[426553455,1782588641000,-308.291498,0.00027397,2]
[426553457,1782588641000,-308.291498,0.00027397,2]
[426553459,1782588641000,-999.514175,0.00027397,2]
[426553460,1782588641000,-999.514175,0.00027397,2]
[426553464,1782588641000,-403.762528,0.00027397,2]
[426553467,1782588641000,-403.762528,0.00027397,2]
[426553465,1782588641000,-151.0,0.00027397,2]
[426553475,1782588641000,-181.585769,0.00027397,2]
[426553463,1782588641000,-151.0,0.00027397,2]
[426553470,1782588641000,-181.585769,0.00027397,2]
[426553477,1782588641000,-181.585769,0.00027397,2]
[426553478,1782588641000,-181.585769,0.00027397,2]
[426553474,1782588641000,-181.585769,0.00027397,2]
[426553471,1782588641000,-181.585769,0.00027397,2]
[426553449,1782588641000,-151.0,0.00027397,2]
[426553469,1782588641000,-181.585769,0.00027397,2]
[426553462,1782588641000,-403.762528,0.00027397,2]
[426553473,1782588641000,-181.585769,0.00027397,2]
[426553468,1782588641000,-181.585769,0.00027397,2]
[426553461,1782588641000,-999.514175,0.00027397,2]
[426553476,1782588641000,-181.585769,0.00027397,2]
[426553553,1782588642000,-152.0,0.00028654,30]
[426553549,1782588642000,-158.0,0.0002865,30]
[426553556,1782588642000,-286.0,0.00028654,30]
[426553550,1782588642000,-173.0,0.0002865,30]
[426553548,1782588642000,-162.12329102,0.0002865,30]
[426553554,1782588642000,-557.0,0.00028654,30]
[426553544,1782588642000,-174.659239,0.00028522,7]
[426553551,1782588642000,-280.0,0.0002865,30]
[426553546,1782588642000,-151.0,0.00028522,7]
[426553570,1782588642000,-700.0,0.00029092,2]
[426553555,1782588642000,-599.0,0.00028654,30]
[426553547,1782588642000,-159.017895,0.00028522,7]
[426553578,1782588642000,-151.0,0.0002911,7]
[426553567,1782588642000,-400.46,0.00029,2]
[426553558,1782588642000,-350.0,0.00028654,30]
[426553562,1782588642000,-912.64085985,0.00028721,2]
[426553559,1782588642000,-192.0,0.00028655,30]
[426553564,1782588642000,-200.0,0.00028922,2]
[426553566,1782588642000,-912.64085985,0.00028995,2]
[426553569,1782588642000,-151.28,0.0002909,2]
[426553560,1782588642000,-204.0,0.00028655,30]
[426553568,1782588642000,-350.0,0.00029064,2]
[426553565,1782588642000,-350.0,0.00028967,2]
[426553557,1782588642000,-192.0,0.00028654,30]
[426553572,1782588642000,-193.804371,0.0002911,7]
[426553540,1782588642000,-268.33303021,0.00028453,7]
[426553561,1782588642000,-724.0,0.00028655,30]
[426553539,1782588642000,-912.64085985,0.00028447,2]
[426553528,1782588642000,-2479.09913021,0.00028,2]
[426553537,1782588642000,-2000.0,0.000284,2]
[426553571,1782588642000,-151.0,0.00029107,3]
[426553514,1782588642000,-151.0,0.00027849,3]
[426553515,1782588642000,-151.0,0.00027849,3]
[426553511,1782588642000,-151.0,0.00027849,3]
[426553510,1782588642000,-151.0,0.00027849,3]
[426553513,1782588642000,-151.0,0.00027849,3]
[426553512,1782588642000,-151.0,0.00027849,3]
[426553516,1782588642000,-151.0,0.00027849,3]
[426553517,1782588642000,-151.0,0.00027849,3]
[426553525,1782588642000,-912.64085985,0.00027899,2]
[426553526,1782588642000,-667.3,0.000279,7]
[426553519,1782588642000,-151.0,0.00027849,3]
[426553529,1782588642000,-201.031282,0.000281,2]
[426553534,1782588642000,-151.0,0.00028256,7]
[426553523,1782588642000,-200.0,0.00027888,2]
[426553522,1782588642000,-151.0,0.00027849,3]
[426553520,1782588642000,-151.0,0.00027849,3]
[426553518,1782588642000,-151.0,0.00027849,3]
[426553527,1782588642000,-223.33205871,0.00027903,2]
[426553521,1782588642000,-151.0,0.00027849,3]
[426553531,1782588642000,-10165.99044332,0.00028198,2]
[426553542,1782588642000,-151.0,0.00028522,7]
[426553530,1782588642000,-912.64085985,0.00028173,2]
[426553533,1782588642000,-151.0,0.00028256,7]
[426553541,1782588642000,-152.41,0.00028453,2]
[426553535,1782588642000,-151.0,0.00028256,7]
[426553532,1782588642000,-151.0,0.00028256,7]
[426553538,1782588642000,-151.0,0.00028444,7]
[426553524,1782588642000,-200.0,0.00027888,2]
[426553574,1782588642000,-193.804371,0.0002911,7]
[426553593,1782588642000,-308.291498,0.0002912,7]
[426553577,1782588642000,-151.0,0.0002911,7]
[426553620,1782588642000,-1284.12984634,0.00029258,2]
[426553622,1782588642000,-912.64085985,0.00029269,2]
[426553621,1782588642000,-1284.12984634,0.00029259,2]
[426553617,1782588642000,-200.0,0.00029187,2]
[426553614,1782588642000,-30187.0,0.0002912,20]
[426553616,1782588642000,-155.24,0.00029175,30]
[426553618,1782588642000,-667.3,0.000292,7]
[426553619,1782588642000,-200.0,0.00029211,2]
[426553628,1782588642000,-151.0,0.00029484,7]
[426553635,1782588642000,-912.64085985,0.00029543,2]
[426553630,1782588642000,-151.0,0.00029484,7]
[426553575,1782588642000,-193.804379,0.0002911,7]
[426553634,1782588642000,-200.0,0.00029503,2]
[426553623,1782588642000,-1133.69030036,0.00029271,7]
[426553631,1782588642000,-151.0,0.00029484,7]
[426553625,1782588642000,-1284.12984634,0.00029389,2]
[426553624,1782588642000,-1284.12984634,0.00029277,2]
[426553629,1782588642000,-151.0,0.00029484,7]
[426553632,1782588642000,-151.0,0.00029484,7]
[426553633,1782588642000,-151.0,0.00029484,7]
[426553627,1782588642000,-200.0,0.00029479,2]
[426553626,1782588642000,-151.0,0.00029433,7]
[426553638,1782588642000,-158.0,0.0002965,30]
[426553637,1782588642000,-1284.12984634,0.00029569,2]
[426553639,1782588642000,-173.0,0.0002965,30]
[426553641,1782588642000,-152.0,0.00029654,30]
[426553640,1782588642000,-280.0,0.0002965,30]
[426553612,1782588642000,-151.0,0.0002912,7]
[426553606,1782588642000,-153.84432,0.0002912,7]
[426553636,1782588642000,-1284.12984634,0.00029544,2]
[426553608,1782588642000,-403.762528,0.0002912,7]
[426553610,1782588642000,-403.762528,0.0002912,7]
[426553573,1782588642000,-193.804371,0.0002911,7]
[426553576,1782588642000,-154.848909,0.0002911,7]
[426553582,1782588642000,-10165.99044332,0.0002911,2]
[426553583,1782588642000,-196.645628,0.0002912,7]
[426553580,1782588642000,-151.0,0.0002911,7]
[426553590,1782588642000,-268.480131,0.0002912,7]
[426553581,1782588642000,-151.0,0.0002911,7]
[426553586,1782588642000,-196.645628,0.0002912,7]
[426553591,1782588642000,-308.291498,0.0002912,7]
[426553588,1782588642000,-268.480136,0.0002912,7]
[426553585,1782588642000,-196.645628,0.0002912,7]
[426553589,1782588642000,-268.480136,0.0002912,7]
[426553587,1782588642000,-268.480136,0.0002912,7]
[426553579,1782588642000,-151.0,0.0002911,7]
[426553592,1782588642000,-308.291498,0.0002912,7]
[426553605,1782588642000,-403.762528,0.0002912,7]
[426553595,1782588642000,-181.585769,0.0002912,7]
[426553597,1782588642000,-181.585769,0.0002912,7]
[426553584,1782588642000,-196.645628,0.0002912,7]
[426553601,1782588642000,-999.514175,0.0002912,7]
[426553596,1782588642000,-181.585769,0.0002912,7]
[426553600,1782588642000,-999.514175,0.0002912,7]
[426553594,1782588642000,-308.291498,0.0002912,7]
[426553603,1782588642000,-403.762528,0.0002912,7]
[426553602,1782588642000,-999.514175,0.0002912,7]
[426553598,1782588642000,-181.585773,0.0002912,7]
[426553604,1782588642000,-151.0,0.0002912,7]
[426553599,1782588642000,-999.514175,0.0002912,7]
[426553683,1782588643000,-399.0,0.00029891,2]
[426553676,1782588643000,-374.71126703,0.0002986,2]
[426553677,1782588643000,-385.0,0.00029873,2]
[426553678,1782588643000,-399.0,0.00029879,2]
[426553682,1782588643000,-385.0,0.0002989,2]
[426553674,1782588643000,-376.0,0.00029849,2]
[426553681,1782588643000,-618.0,0.00029889,2]
[426553684,1782588643000,-528.0,0.00029895,2]
[426553673,1782588643000,-399.0,0.00029843,2]
[426553675,1782588643000,-385.0,0.00029854,2]
[426553680,1782588643000,-376.0,0.00029887,2]
[426553679,1782588643000,-399.0,0.00029885,2]
[426553686,1782588643000,-399.0,0.000299,2]
[426553687,1782588643000,-376.0,0.00029901,2]
[426553696,1782588643000,-399.0,0.00029936,2]
[426553685,1782588643000,-376.0,0.00029896,2]
[426553689,1782588643000,-376.0,0.00029919,2]
[426553688,1782588643000,-376.0,0.00029906,2]
[426553666,1782588643000,-1615.15593731,0.00029818,7]
[426553690,1782588643000,-376.0,0.00029919,2]
[426553692,1782588643000,-385.0,0.00029922,2]
[426553691,1782588643000,-399.0,0.00029921,2]
[426553694,1782588643000,-399.0,0.00029932,2]
[426553695,1782588643000,-385.0,0.00029934,2]
[426553693,1782588643000,-376.0,0.00029925,2]
[426553699,1782588643000,-399.0,0.0002995,2]
[426553697,1782588643000,-376.0,0.00029948,2]
[426553668,1782588643000,-399.0,0.00029827,2]
[426553712,1782588643000,-399.0,0.00030019,2]
[426553665,1782588643000,-912.64085985,0.00029817,2]
[426553709,1782588643000,-351.90688607,0.0003,7]
[426553642,1782588643000,-557.0,0.00029654,30]
[426553644,1782588643000,-286.0,0.00029654,30]
[426553646,1782588643000,-350.0,0.00029654,30]
[426553648,1782588643000,-300.368052,0.00029654,7]
[426553649,1782588643000,-300.368052,0.00029654,7]
[426553647,1782588643000,-300.368052,0.00029654,7]
[426553645,1782588643000,-192.0,0.00029654,30]
[426553643,1782588643000,-599.0,0.00029654,30]
[426553660,1782588643000,-1284.12984634,0.00029745,2]
[426553650,1782588643000,-300.368052,0.00029654,7]
[426553661,1782588643000,-1311.12188879,0.00029765,7]
[426553651,1782588643000,-192.0,0.00029655,30]
[426553664,1782588643000,-3659.87386005,0.00029801,2]
[426553654,1782588643000,-1284.12984634,0.00029666,2]
[426553652,1782588643000,-204.0,0.00029655,30]
[426553658,1782588643000,-152.41,0.00029718,7]
[426553657,1782588643000,-2258.2124932,0.00029697,7]
[426553656,1782588643000,-3879.06406836,0.00029689,2]
[426553655,1782588643000,-1235.1310567,0.00029689,7]
[426553659,1782588643000,-1119.48554626,0.00029742,7]
[426553663,1782588643000,-200.0,0.00029798,2]
[426553671,1782588643000,-385.0,0.00029836,2]
[426553672,1782588643000,-376.0,0.00029841,2]
[426553662,1782588643000,-200.0,0.00029774,2]
[426553667,1782588643000,-1284.12984634,0.00029826,2]
[426553670,1782588643000,-399.0,0.00029833,2]
[426553669,1782588643000,-376.0,0.00029829,2]
[426553653,1782588643000,-724.0,0.00029655,30]
[426553700,1782588643000,-508.0,0.00029952,2]
[426553731,1782588643000,-376.0,0.00030078,2]
[426553698,1782588643000,-376.0,0.00029948,2]
[426553732,1782588643000,-30187.0,0.0003008,20]
[426553744,1782588643000,-999.514175,0.0003008,7]
[426553739,1782588643000,-300.368052,0.0003008,7]
[426553741,1782588643000,-300.368052,0.0003008,7]
[426553740,1782588643000,-300.368052,0.0003008,7]
[426553734,1782588643000,-151.0,0.0003008,7]
[426553737,1782588643000,-151.0,0.0003008,7]
[426553742,1782588643000,-300.368052,0.0003008,7]
[426553735,1782588643000,-151.0,0.0003008,7]
[426553743,1782588643000,-999.514175,0.0003008,7]
[426553756,1782588643000,-399.0,0.00030095,2]
[426553746,1782588643000,-999.514175,0.0003008,7]
[426553749,1782588643000,-403.762528,0.0003008,7]
[426553745,1782588643000,-999.514175,0.0003008,7]
[426553747,1782588643000,-403.762528,0.0003008,7]
[426553748,1782588643000,-151.0,0.0003008,7]
[426553750,1782588643000,-403.762528,0.0003008,7]
[426553751,1782588643000,-403.762528,0.0003008,7]
[426553752,1782588643000,-151.0,0.0003008,7]
[426553754,1782588643000,-520.25318628,0.0003009,2]
[426553753,1782588643000,-376.0,0.00030086,2]
[426553755,1782588643000,-912.64085985,0.00030091,2]
[426553758,1782588643000,-300.0,0.00030099,10]
[426553760,1782588643000,-666.0,0.00030099,10]
[426553762,1782588643000,-317.59444584,0.00030099,10]
[426553759,1782588643000,-300.0,0.00030099,10]
[426553706,1782588643000,-376.0,0.00029985,2]
[426553736,1782588643000,-151.0,0.0003008,7]
[426553738,1782588643000,-201.19887,0.0003008,7]
[426553757,1782588643000,-200.0,0.00030096,2]
[426553730,1782588643000,-200.0,0.00030071,2]
[426553733,1782588643000,-151.0,0.0003008,7]
[426553704,1782588643000,-376.0,0.0002998,2]
[426553708,1782588643000,-399.0,0.00029999,2]
[426553707,1782588643000,-385.0,0.0002999,2]
[426553702,1782588643000,-376.0,0.00029972,2]
[426553703,1782588643000,-399.0,0.00029979,2]
[426553705,1782588643000,-176.32,0.00029981,2]
[426553721,1782588643000,-3649.0,0.00030034,2]
[426553710,1782588643000,-150.0,0.0003,2]
[426553714,1782588643000,-196.645628,0.00030022,7]
[426553711,1782588643000,-217.0,0.0003001,2]
[426553713,1782588643000,-10165.99044332,0.00030022,2]
[426553717,1782588643000,-196.645638,0.00030022,7]
[426553720,1782588643000,-3563.0,0.00030034,2]
[426553701,1782588643000,-399.0,0.00029953,2]
[426553724,1782588643000,-399.0,0.00030037,2]
[426553719,1782588643000,-1230.0,0.00030034,2]
[426553716,1782588643000,-196.645628,0.00030022,7]
[426553718,1782588643000,-399.0,0.00030028,2]
[426553723,1782588643000,-399.0,0.00030037,2]
[426553722,1782588643000,-376.0,0.00030037,2]
[426553764,1782588643000,-666.0,0.00030099,10]
[426553729,1782588643000,-399.0,0.00030068,2]
[426553728,1782588643000,-376.0,0.00030063,2]
[426553715,1782588643000,-196.645628,0.00030022,7]
[426553726,1782588643000,-376.0,0.00030043,2]
[426553727,1782588643000,-376.0,0.00030063,2]
[426553725,1782588643000,-399.0,0.00030042,2]
[426553805,1782588644000,-557.0,0.00030654,30]
[426553804,1782588644000,-152.0,0.00030654,30]
[426553792,1782588644000,-912.64085985,0.00030365,2]
[426553806,1782588644000,-599.0,0.00030654,30]
[426553807,1782588644000,-286.0,0.00030654,30]
[426553803,1782588644000,-280.0,0.0003065,30]
[426553797,1782588644000,-152.0,0.00030546,3]
[426553802,1782588644000,-173.0,0.0003065,30]
[426553800,1782588644000,-912.64085985,0.00030639,2]
[426553799,1782588644000,-151.267,0.00030593,26]
[426553798,1782588644000,-1152.607,0.00030593,26]
[426553813,1782588644000,-151.08,0.00030722,2]
[426553801,1782588644000,-158.0,0.0003065,30]
[426553811,1782588644000,-204.0,0.00030655,30]
[426553818,1782588644000,-890.0,0.000308,2]
[426553816,1782588644000,-151.0,0.00030724,2]
[426553817,1782588644000,-184.48,0.00030724,2]
[426553808,1782588644000,-192.0,0.00030654,30]
[426553809,1782588644000,-350.0,0.00030654,30]
[426553810,1782588644000,-192.0,0.00030655,30]
[426553815,1782588644000,-151.24,0.00030724,2]
[426553814,1782588644000,-280.65,0.00030722,2]
[426553822,1782588644000,-247.05206377,0.00030894,2]
[426553829,1782588644000,-1000.0,0.00031,7]
[426553825,1782588644000,-682.6471896,0.00030894,2]
[426553821,1782588644000,-247.05206377,0.00030894,2]
[426553831,1782588644000,-2427.59388096,0.00031,2]
[426553812,1782588644000,-724.0,0.00030655,30]
[426553795,1782588644000,-4812.0677002,0.00030441,2]
[426553766,1782588644000,-500.0,0.00030099,7]
[426553794,1782588644000,-3659.87386005,0.00030387,2]
[426553823,1782588644000,-1284.12984634,0.00030894,2]
[426553769,1782588644000,-151.0,0.000301,7]
[426553768,1782588644000,-151.0,0.000301,7]
[426553765,1782588644000,-500.0,0.00030099,7]
[426553767,1782588644000,-344738.74258612,0.000301,7]
[426553771,1782588644000,-300.368052,0.000301,7]
[426553772,1782588644000,-300.368052,0.000301,7]
[426553770,1782588644000,-150.0,0.000301,10]
[426553785,1782588644000,-3879.06406836,0.00030106,2]
[426553774,1782588644000,-300.368052,0.000301,7]
[426553784,1782588644000,-403.762524,0.000301,7]
[426553773,1782588644000,-300.368052,0.000301,7]
[426553775,1782588644000,-999.514175,0.000301,7]
[426553793,1782588644000,-200.0,0.00030372,2]
[426553776,1782588644000,-200.0,0.000301,2]
[426553779,1782588644000,-999.514169,0.000301,7]
[426553783,1782588644000,-403.762528,0.000301,7]
[426553780,1782588644000,-403.762528,0.000301,7]
[426553778,1782588644000,-999.514175,0.000301,7]
[426553781,1782588644000,-151.0,0.000301,7]
[426553782,1782588644000,-403.762528,0.000301,7]
[426553786,1782588644000,-3659.87386005,0.00030148,2]
[426553787,1782588644000,-4812.0677002,0.00030154,2]
[426553790,1782588644000,-503.92,0.00030318,2]
[426553788,1782588644000,-667.3,0.000302,7]
[426553791,1782588644000,-300.0,0.00030349,7]
[426553789,1782588644000,-3659.87386005,0.00030254,2]
[426553796,1782588644000,-1138.87989783,0.00030537,2]
[426553777,1782588644000,-999.514175,0.000301,7]
[426553830,1782588644000,-1704.65609025,0.00031,2]
[426553819,1782588644000,-621.0,0.000308,2]
[426553827,1782588644000,-10165.99044332,0.00030933,2]
[426553872,1782588644000,-227.801081,0.00031507,7]
[426553871,1782588644000,-222.233195,0.00031507,7]
[426553861,1782588644000,-151.0,0.00031507,7]
[426553862,1782588644000,-151.0,0.00031507,7]
[426553867,1782588644000,-153.335986,0.00031507,7]
[426553859,1782588644000,-666.85,0.00031507,7]
[426553863,1782588644000,-151.0,0.00031507,7]
[426553870,1782588644000,-151.0,0.00031507,7]
[426553868,1782588644000,-151.0,0.00031507,7]
[426553860,1782588644000,-666.85,0.00031507,7]
[426553869,1782588644000,-151.0,0.00031507,7]